bitfinex-derivatives/quotes_ETHF0:USTF0_20250417
["timestamp","ask_amount","ask_price","bid_price","bid_amount"]
[1744908353838,8.2532,1599.4,1598.6,6.33609]
[1744908354049,1.25095,1599.1,1598.7,1.25124]
[1744908354250,0.00935541,1599.2,1599.1,1.25092]
[1744908354440,3.21715541,1599.2,1599.1,1.25092]
[1744908355050,1.25106,1599.0,1598.8,1.25114]
[1744908355347,1.25106,1599.0,1598.6,3.2078]
[1744908355348,3.2078,1599.0,1598.4,3.2078]
[1744908355549,3.21715541,1599.2,1599.1,1.25092]
[1744908355743,0.00935541,1599.2,1599.1,1.25092]
[1744908356748,0.00935541,1599.2,1599.1,6.68492]
[1744908357948,1.25098,1599.1,1598.9,1.25106]
[1744908358149,3.1945,1599.0,1598.9,1.25106]
[1744908359355,3.21715541,1599.2,1598.8,5.434]
[1744908359543,3.21715541,1599.2,1599.1,1.25092]
[1744908359850,3.21715541,1599.2,1598.8,5.434]
[1744908360052,1.25098,1599.1,1598.9,1.25106]
[1744908360243,3.21715541,1599.2,1598.8,6.68511]
[1744908360448,3.21715541,1599.2,1598.8,5.434]
[1744908360646,3.21715541,1599.2,1599.1,1.25092]
[1744908360943,4.46803541,1599.2,1598.9,5.431]
[1744908361149,4.54742,1599.1,1599.0,1.25093]
[1744908361460,3.2965,1599.1,1599.0,1.251]
[1744908362247,11.42382,1599.1,1598.6,3.4834]
[1744908362446,4.45893,1598.9,1598.8,1.25116]
[1744908362645,3.2078,1598.9,1598.8,1.25116]
[1744908362951,6.6076,1598.9,1598.8,1.25116]
[1744908363147,3.3998,1598.9,1598.8,1.25116]
[1744908363543,3.21715541,1599.2,1599.1,1.25092]
[1744908363746,3.40915541,1599.2,1599.1,1.25092]
[1744908364240,3.40915541,1599.2,1598.9,6.6364]
[1744908364443,9.94515541,1599.2,1599.1,1.25092]
[1744908364639,0.00935541,1599.2,1599.1,1.25092]
[1744908364845,0.00935541,1599.2,1599.1,6.25092]
[1744908365348,0.00935541,1599.2,1599.1,13.08652]
[1744908366055,3.21715541,1599.2,1599.1,1.25092]
[1744908366637,7.94830541,1599.2,1599.1,1.25092]
[1744908367848,0.00935541,1599.2,1599.1,1.25092]
[1744908368057,0.00935541,1599.2,1599.1,12.62442]
[1744908368250,0.00935541,1599.2,1599.1,15.82202]
[1744908368948,5.41e-06,1599.2,1599.1,15.82202]
[1744908369350,3.4436,1599.7,1599.6,1.25053]
[1744908369552,8.28546969,1599.9,1599.8,1.25038]
[1744908369753,8.28546969,1599.9,1599.8,6.68138]
[1744908369942,11.72906969,1600.0,1599.8,6.68138]
[1744908370146,11.72906969,1600.0,1599.8,5.431]
[1744908370347,11.72906969,1600.0,1599.9,1.2503]
[1744908370650,8.28546969,1600.0,1599.9,3.4431]
[1744908370850,1.2503,1599.9,1599.8,5.431]
[1744908371046,1.2503,1599.9,1599.7,0.00935541]
[1744908371252,12.74354969,1600.0,1599.8,1.25035]
[1744908371447,3.4986,1599.9,1599.8,1.25035]
[1744908371956,11.49326969,1600.0,1599.9,1.2503]
[1744908372157,11.49326969,1600.0,1599.9,4.4144]
[1744908372455,11.49326969,1600.0,1599.8,6.68131]
[1744908372655,4.7489,1599.9,1599.8,5.431]
[1744908373055,3.4986,1599.9,1599.8,5.431]
[1744908373561,4.7489,1599.9,1599.8,6.68138]
[1744908373752,3.4986,1599.9,1599.7,1.2504]
[1744908373950,4.45818,1599.8,1599.7,1.2504]
[1744908374656,3.4986,1599.9,1599.8,1.25038]
[1744908375656,3.2078,1600.0,1599.9,1.2503]
[1744908375851,3.2078,1600.0,1599.9,4.6027]
[1744908376050,4.45802,1600.0,1599.9,8.7834]
[1744908376250,3.2078,1600.0,1599.9,1.2503]
[1744908376451,0.00935541,1600.1,1600.0,1.25022]
[1744908376651,0.00935541,1600.1,1600.0,8.04062]
[1744908377857,0.00935541,1600.1,1600.0,11.49092]
[1744908378360,0.00935541,1600.1,1599.9,6.68126]
[1744908378555,3.2078,1600.0,1599.9,6.68126]
[1744908379054,6.4649,1600.0,1599.9,6.68126]
[1744908379654,3.2078,1600.0,1599.9,6.68126]
[1744908379960,0.00935541,1600.1,1600.0,1.25022]
[1744908380159,0.00935541,1600.1,1600.0,4.70182]
[1744908381667,1.25949541,1600.1,1600.0,4.70182]
[1744908382462,0.00935541,1600.1,1600.0,4.70182]
[1744908382958,0.00935541,1600.1,1600.0,9.70182]
[1744908383256,0.00935541,1600.1,1600.0,12.90962]
[1744908383852,6.4157,1600.5,1600.4,1.24991]
[1744908384157,8.28546969,1600.6,1600.5,1.24983]
[1744908384756,8.28546969,1600.6,1600.5,9.59303]
[1744908384951,8.28546969,1600.6,1600.5,13.04403]
[1744908385153,5.16070405,1600.6,1600.5,13.04403]
[1744908385356,10.3242467,1600.7,1600.6,1.24975]
[1744908385558,8.2749553,1601.0,1600.9,1.24952]
[1744908385758,11.47366007,1601.0,1600.9,6.67952]
[1744908386267,8.26576007,1601.0,1600.9,6.67952]
[1744908386659,8.26576007,1601.0,1600.9,10.08752]
[1744908387064,8.26576007,1601.0,1600.9,15.08752]
[1744908387265,8.26576007,1601.0,1600.9,18.49922]
[1744908387468,10.21477788,1601.1,1601.0,1.24944]
[1744908387769,10.21477788,1601.1,1601.0,4.65744]
[1744908387963,10.21477788,1601.1,1601.0,10.08644]
[1744908388968,10.21477788,1601.1,1601.0,13.29424]
[1744908389466,12.31652236,1601.3,1601.2,1.24928]
[1744908389964,3.1624,1601.5,1601.4,1.24913]
[1744908390271,3.1624,1601.5,1601.4,6.67213]
[1744908390467,3.3919,1601.7,1601.6,1.24897]
[1744908390671,3.1624,1601.7,1601.6,1.24897]
[1744908390863,4.41132,1601.7,1601.4,5.423]
[1744908391063,3.1624,1601.7,1601.6,1.24897]
[1744908391857,3.1624,1601.7,1601.3,3.22075541]
[1744908392062,1.24905,1601.5,1601.4,5.422]
[1744908392267,1.24905,1601.5,1601.3,6.68052541]
[1744908392468,3.1624,1601.4,1601.3,6.68052541]
[1744908393561,3.1624,1601.4,1601.3,10.02612541]
[1744908393766,3.2078,1601.6,1601.3,8.77695541]
[1744908393964,3.2078,1601.6,1601.5,1.24905]
[1744908394167,4.54327,1601.7,1601.5,1.24899]
[1744908394666,4.54327,1601.7,1601.6,1.24897]
[1744908394871,3.2943,1601.7,1601.6,1.24897]
[1744908395065,6.5503,1601.7,1601.6,1.24897]
[1744908395263,7.79919,1601.7,1601.6,1.24897]
[1744908395669,6.5503,1601.7,1601.6,1.24897]
[1744908396371,7.79919,1601.7,1601.6,1.24897]
[1744908396872,7.79919,1601.7,1601.5,1.24899]
[1744908397274,3.2078,1601.6,1601.5,1.24901]
[1744908397474,6.5873,1601.6,1601.5,1.24901]
[1744908397675,6.5873,1601.6,1601.3,14.76880732]
[1744908397975,6.5873,1601.6,1601.5,1.24901]
[1744908398174,6.57810477,1601.6,1601.5,1.24901]
[1744908398977,1.24905,1601.5,1601.4,1.25844541]
[1744908399277,1.24905,1601.5,1601.4,0.00016018]
[1744908399474,4.51425,1601.5,1601.4,1.24929018]
[1744908399777,3.2652,1601.5,1601.4,1.24929018]
[1744908400178,3.19860477,1601.6,1601.5,1.24905]
[1744908400476,3.18940954,1601.6,1601.5,6.67005]
[1744908400868,0.00935541,1601.8,1601.7,1.24889]
[1744908401070,7.41550643,1602.3,1601.7,9.45216]
[1744908401273,7.41550643,1602.3,1602.1,1.24858]
[1744908401573,6.16704643,1602.3,1602.1,1.24858]
[1744908401879,7.41552643,1602.3,1602.1,6.66958]
[1744908402081,7.41552643,1602.3,1602.1,1.24858]
[1744908402380,10.61082882,1602.2,1602.1,1.24858]
[1744908402585,10.61082882,1602.2,1602.1,6.66958]
[1744908403377,10.61082882,1602.2,1602.1,1.24858]
[1744908403582,3.2824,1602.2,1602.1,6.66958]
[1744908403778,0.00935541,1602.3,1602.2,1.2485]
[1744908403978,0.00935541,1602.3,1602.2,4.4849]
[1744908404679,0.00935541,1602.3,1602.2,13.36]
[1744908404877,3.21715541,1602.3,1602.2,7.94]
[1744908405076,3.21715541,1602.3,1602.2,6.6685]
[1744908405278,4.46558541,1602.3,1602.1,1.24855]
[1744908405477,3.3611,1602.2,1602.1,1.24855]
[1744908405677,4.6096,1602.2,1602.1,1.24855]
[1744908405874,3.3611,1602.2,1602.1,1.24855]
[1744908406078,3.3611,1602.2,1602.0,6.66859]
[1744908406277,1.24868,1602.0,1601.8,1.24882]
[1744908406585,1.24868,1602.0,1601.9,6.66874]
[1744908406785,0.00935541,1602.3,1601.9,5.42]
[1744908406985,1.25783541,1602.3,1601.9,5.42]
[1744908407186,6.5128,1602.2,1602.1,1.24855]
[1744908407379,7.7613,1602.2,1602.0,1.24861]
[1744908407774,6.5128,1602.2,1602.1,1.24858]
[1744908409489,7.7613,1602.2,1602.1,1.24858]
[1744908409782,1.24861,1602.1,1601.8,3.122]
[1744908409988,3.12206,1601.8,1601.4,0.00016018]
[1744908410284,4.45685,1601.5,1601.4,0.00016018]
[1744908410488,0.00903505,1601.4,1601.1,3.12341]
[1744908410691,0.00903505,1601.4,1601.3,1.24921]
[1744908410986,0.00903505,1601.3,1601.2,1.24923]
[1744908411391,1.25824505,1601.3,1601.2,5.419]
[1744908411585,5.0,1601.3,1601.1,0.00935541]
[1744908411782,4.71718,1601.2,1601.1,0.00935541]
[1744908412093,6.8711,1601.2,1601.1,1.25871541]
[1744908412590,6.8711,1601.2,1601.1,0.00935541]
[1744908412789,1.24957,1600.9,1600.6,5.419]
[1744908412976,11.8711,1601.2,1600.6,5.419]
[1744908412977,3.2078,1601.0,1600.9,1.24952]
[1744908413182,11.3282,1601.2,1600.8,3.12399]
[1744908413382,11.3282,1601.2,1601.1,1.24936]
[1744908413783,1.24938,1601.1,1601.0,1.24939]
[1744908414280,1.24938,1601.1,1600.8,0.00935541]
[1744908414588,1.24944,1601.0,1600.9,1.24946]
[1744908414785,1.24944,1601.0,1600.8,0.00935541]
[1744908415087,10.0789,1601.2,1601.1,1.24936]
[1744908416089,3.21715541,1601.4,1601.3,1.24921]
[1744908416287,4.46628541,1601.4,1601.3,1.24921]
[1744908416588,3.21715541,1601.4,1601.3,1.24921]
[1744908417095,0.00935541,1601.4,1601.3,1.24921]
[1744908417388,0.00935541,1601.4,1601.3,4.66771]
[1744908417693,0.00935541,1601.4,1601.3,1.24921]
[1744908417894,3.34035541,1601.4,1601.3,1.24921]
[1744908418292,0.00935541,1601.4,1601.3,9.45701]
[1744908419697,0.00935541,1601.4,1601.3,4.45701]
[1744908419895,1.25848541,1601.4,1601.3,3.2078]
[1744908420085,0.00935541,1601.4,1601.3,1.24921]
[1744908420292,3.37455541,1601.4,1601.3,1.24921]
[1744908420892,4.62368541,1601.4,1601.3,1.24921]
[1744908421097,3.37455541,1601.4,1601.3,1.24921]
[1744908421397,1.24921,1601.3,1601.2,0.075]
[1744908421593,4.70741,1601.3,1601.2,0.075]
[1744908421897,1.24936,1601.1,1601.0,1.24943]
[1744908422090,1.24936,1601.1,1600.9,1.24947]
[1744908422284,1.24952,1600.9,1600.8,1.25891541]
[1744908422488,6.573,1601.0,1600.8,1.25893541]
[1744908422691,3.3884,1600.9,1600.8,1.25893541]
[1744908422891,6.6586,1600.9,1600.8,1.25893541]
[1744908423397,3.2702,1600.9,1600.8,1.25893541]
[1744908423698,3.2702,1600.9,1600.8,6.55863541]
[1744908424186,3.2702,1600.9,1600.8,11.97363541]
[1744908424589,3.3884,1601.2,1601.1,1.24936]
[1744908424793,3.2702,1601.2,1601.1,1.24936]
[1744908424996,3.2702,1601.2,1601.1,9.87216]
[1744908425194,0.00935541,1601.4,1601.3,1.24921]
[1744908425901,4.12062882,1601.8,1601.7,1.24889]
[1744908426106,0.75739049,1601.8,1601.7,1.32389]
[1744908426300,3.5089,1602.1,1602.0,1.24866]
[1744908426801,30.7375656,1602.2,1601.8,0.50177739]
[1744908426992,27.1947656,1602.2,1602.1,1.24858]
[1744908427195,30.41192101,1602.2,1602.1,1.24858]
[1744908427591,27.20412101,1602.2,1602.1,1.24858]
[1744908428293,30.65612101,1602.2,1602.1,3.10428]
[1744908428491,25.81703101,1602.2,1602.1,8.10428]
[1744908428795,18.50461341,1602.2,1602.1,8.10428]
[1744908429097,12.37929581,1602.2,1602.1,8.10428]
[1744908429299,10.93417581,1602.2,1602.1,8.10428]
[1744908429499,7.81218074,1602.2,1602.1,8.10428]
[1744908429695,3.10947567,1602.2,1602.1,8.10428]
[1744908429896,1.44164567,1602.2,1602.1,8.10428]
[1744908430101,5.67e-06,1602.2,1602.1,8.10428]
[1744908430903,10.94204803,1602.3,1602.2,1.2485]
[1744908431098,7.98871803,1602.3,1602.2,11.7942]
[1744908431298,4.48389,1602.5,1602.3,1.24841]
[1744908431603,3.2356,1602.3,1602.2,6.7365]
[1744908431993,6.4434,1602.3,1602.2,6.7365]
[1744908432195,6.4434,1602.3,1602.0,1.24859]
[1744908432497,7.69188,1602.3,1602.1,1.24858]
[1744908433197,6.4434,1602.3,1601.9,8.6208]
[1744908433397,1.24866,1602.0,1601.9,5.413]
[1744908433593,1.24874,1601.9,1601.8,0.00935541]
[1744908434397,4.78434,1601.9,1601.8,0.00935541]
[1744908434597,3.12205,1601.8,1601.2,5.413]
[1744908434892,4.45684,1601.6,1601.3,1.24914]
[1744908435096,0.00919523,1601.3,1601.2,6.66228]
[1744908435499,3.2078,1601.6,1601.5,1.23985477]
[1744908435701,7.87309,1602.0,1601.5,8.53562]
[1744908435903,3.2078,1601.9,1601.8,1.24875]
[1744908436100,0.00935541,1601.9,1601.8,1.24877]
[1744908437799,3.45365541,1601.9,1601.8,1.24877]
[1744908438110,3.45365541,1601.9,1601.8,6.66177]
[1744908438298,3.45365541,1601.9,1601.8,1.24877]
[1744908439907,0.00935541,1601.9,1601.8,6.66177]
[1744908440401,3.49005541,1601.9,1601.8,6.66177]
[1744908442310,3.49005541,1601.9,1601.8,8.62657]
[1744908442704,3.49005541,1601.9,1601.8,6.66177]
[1744908443213,6.69785541,1601.9,1601.8,6.66177]
[1744908443710,7.94659541,1601.9,1601.8,5.413]
[1744908444308,8.02159541,1601.9,1601.8,5.413]
[1744908444700,8.02159541,1601.9,1601.5,11.65824]
[1744908444905,8.02159541,1601.9,1601.8,1.24882]
[1744908444906,6.77285541,1601.9,1601.8,1.24882]
[1744908445103,6.69785541,1601.9,1601.8,1.24882]
[1744908445805,3.49005541,1601.9,1601.8,1.24882]
[1744908446004,3.49005541,1601.9,1601.8,6.66182]
[1744908446509,3.49005541,1601.9,1601.8,12.24222]
[1744908446910,0.00935541,1601.9,1601.8,12.24222]
[1744908447209,0.00935541,1601.9,1601.8,17.24222]
[1744908447807,0.00935541,1601.9,1601.8,12.24222]
[1744908448014,0.00935541,1601.9,1601.8,17.24222]
[1744908448514,5.41e-06,1601.9,1601.8,17.24222]
[1744908448912,3.5098,1602.3,1602.2,1.2485]
[1744908449113,3.5098,1602.3,1602.2,6.6615]
[1744908449508,6.7176,1602.3,1602.2,6.6615]
[1744908449812,1.24853,1602.2,1602.1,1.24855]
[1744908450008,3.5935,1602.2,1602.1,1.24855]
[1744908452811,4.842,1602.2,1602.1,1.24858]
[1744908453011,3.5935,1602.2,1602.1,1.24858]
[1744908454614,4.842,1602.2,1602.1,1.24858]
[1744908454814,4.84207,1602.2,1602.0,1.25795541]
[1744908455014,1.24858,1602.1,1602.0,0.00935541]
[1744908455216,9.9471,1602.1,1601.7,5.481]
[1744908455406,1.2488,1601.9,1601.8,1.2488]
[1744908455606,4.4566,1601.9,1601.8,1.2488]
[1744908455816,8.2078,1601.9,1601.8,1.2488]
[1744908456018,3.2078,1601.9,1601.8,1.2488]
[1744908456416,3.21715541,1602.3,1602.2,1.2485]
[1744908456712,0.00935541,1602.3,1602.2,1.2485]
[1744908457618,8.28915378,1602.3,1602.2,1.23655542]
[1744908458723,8.28915378,1602.3,1602.2,1.16155542]
[1744908458912,11.72985378,1602.3,1602.2,1.16155542]
[1744908459717,3.45005541,1602.3,1602.2,1.16155542]
[1744908460119,3.45005541,1602.3,1602.2,1.66539414]
[1744908460321,0.00935541,1602.3,1602.2,9.87319414]
[1744908460626,5.41e-06,1602.3,1602.2,9.87319414]
[1744908461119,5.41e-06,1602.3,1602.2,10.34734848]
[1744908461324,5.41e-06,1602.3,1602.2,10.97214848]
[1744908461525,3.5884,1602.7,1602.6,1.24819]
[1744908461722,3.5884,1602.7,1602.6,6.65319]
[1744908462016,6.7962,1602.7,1602.6,6.65319]
[1744908462422,11.7962,1602.7,1602.6,1.24819]
[1744908462621,6.7962,1602.7,1602.6,1.24819]
[1744908463419,3.5884,1602.7,1602.6,1.24819]
[1744908463725,6.7962,1602.7,1602.6,1.24819]
[1744908463926,3.5884,1602.7,1602.6,1.24819]
[1744908465621,4.83651,1602.7,1602.6,1.24819]
[1744908465822,3.5884,1602.7,1602.6,1.24819]
[1744908466727,4.83651,1602.7,1602.6,1.24819]
[1744908467026,3.5884,1602.7,1602.6,1.24819]
[1744908467619,3.5884,1602.7,1602.3,8.6128]
[1744908467620,11.7962,1602.7,1602.3,8.6128]
[1744908467924,3.5884,1602.7,1602.6,1.24819]
[1744908468332,3.5884,1602.7,1602.6,8.81169]
[1744908469132,0.00935541,1602.8,1602.7,1.24811]
[1744908469431,6.21147077,1603.0,1602.9,1.24796]
[1744908469623,6.21147077,1603.0,1602.9,6.65296]
[1744908470023,9.60557077,1603.0,1602.9,6.65296]
[1744908470330,13.21677077,1603.0,1602.9,6.65296]
[1744908472926,8.27979837,1603.2,1602.9,13.6128]
[1744908473130,0.13516434,1603.3,1603.2,1.24772]
[1744908473323,3.34296434,1603.3,1603.2,6.65172]
[1744908473530,4.75171434,1603.3,1603.1,1.24776]
[1744908473835,4.75171434,1603.3,1603.1,1.24775]
[1744908474131,4.45559,1603.2,1603.0,1.24788]
[1744908474328,4.75177434,1603.3,1603.1,1.2478]
[1744908474520,3.50406434,1603.3,1602.9,5.404]
[1744908474726,3.50406434,1603.3,1603.2,1.24772]
[1744908475636,4.61657,1603.3,1603.1,1.24774]
[1744908475934,3.3689,1603.3,1602.9,17.00598]
[1744908476130,3.3689,1603.3,1603.2,1.24772]
[1744908476924,3.3689,1603.3,1602.9,13.88609]
[1744908477331,3.3689,1603.3,1603.2,1.24772]
[1744908478238,8.3689,1603.3,1602.8,3.11999]
[1744908478434,3.2078,1603.1,1602.9,1.24793]
[1744908478642,1.24795,1603.0,1602.9,1.24796]
[1744908478844,1.24795,1603.0,1602.8,6.65097]
[1744908479043,3.2078,1602.9,1602.6,0.00935541]
[1744908479243,1.24837,1602.4,1602.3,1.2484]
[1744908479539,1.24846,1602.3,1602.0,5.403]
[1744908479740,3.12088,1602.4,1602.0,5.403]
[1744908480046,1.24843,1602.3,1602.2,1.2485]
[1744908481150,1.2485,1602.2,1602.1,0.00935541]
[1744908481438,4.4563,1602.2,1602.1,0.00935541]
[1744908481644,9.4563,1602.2,1602.1,1.25793541]
[1744908481839,9.4563,1602.2,1602.1,0.00935541]
[1744908482043,9.92375541,1602.4,1602.3,1.24843]
[1744908482238,3.21715541,1602.4,1602.3,1.24843]
[1744908483242,3.21715541,1602.4,1602.1,5.40535541]
[1744908483545,1.24846,1602.3,1602.1,0.00935541]
[1744908483744,1.24846,1602.3,1602.2,1.2485]
[1744908484248,4.46556541,1602.4,1602.2,1.2485]
[1744908484547,5.41e-06,1602.4,1602.3,4.45623]
[1744908484751,3.2078,1602.9,1602.8,1.24804]
[1744908484943,6.8257,1603.1,1603.0,1.24788]
[1744908485545,23.80801392,1603.2,1603.1,1.2478]
[1744908485742,23.80801392,1603.2,1603.0,1.24786]
[1744908485944,23.80801392,1603.2,1603.1,9.8516]
[1744908486246,20.86751125,1603.2,1603.1,14.8516]
[1744908486446,0.00935541,1603.3,1603.2,1.24772]
[1744908486754,0.00935541,1603.3,1603.2,3.41382]
[1744908486953,0.00935541,1603.3,1603.2,8.41382]
[1744908487148,0.00935541,1603.3,1603.2,3.41382]
[1744908487749,0.00935541,1603.3,1603.2,8.41382]
[1744908487949,0.00935541,1603.3,1603.2,3.41382]
[1744908489553,3.3409,1603.6,1603.5,1.24749]
[1744908489858,3.3409,1603.6,1603.5,5.395]
[1744908490152,1.2476,1603.4,1603.2,5.395]
[1744908490458,8.01691,1603.3,1602.9,5.395]
[1744908490655,8.01685,1603.3,1603.1,1.24776]
[1744908490855,8.02294686,1603.3,1602.9,5.395]
[1744908491058,8.02294686,1603.3,1603.1,1.24776]
[1744908491246,11.77529686,1603.3,1602.9,5.395]
[1744908491444,1.24796,1602.9,1602.8,0.00935541]
[1744908491956,13.39666,1602.9,1602.8,0.00935541]
[1744908492658,7.1487,1602.9,1602.8,1.25739541]
[1744908493154,3.5614,1602.9,1602.8,1.25739541]
[1744908495164,9.80936,1602.9,1602.8,0.00935541]
[1744908495362,13.20786,1602.9,1602.8,0.00935541]
[1744908495559,3.2078,1603.0,1602.9,1.24796]
[1744908499164,6.7552,1603.2,1603.1,1.2478]
[1744908499356,3.5474,1603.2,1603.1,1.2478]
[1744908499952,3.5474,1603.2,1603.1,5.395]
[1744908500259,1.24782,1603.1,1602.9,1.2479]
[1744908500459,3.3538,1603.0,1602.9,1.2479]
[1744908504162,4.60168,1603.0,1602.9,1.2479]
[1744908504366,3.3538,1603.0,1602.9,1.2479]
[1744908505969,3.3538,1603.0,1602.9,3.4242]
[1744908507670,0.00609686,1603.3,1603.2,1.24772]
[1744908508473,0.00609686,1603.3,1603.2,3.42532]
[1744908508865,0.00609686,1603.3,1603.2,1.24772]
[1744908509065,3.44609686,1603.3,1603.2,1.24772]
[1744908509573,1.24775,1603.2,1603.1,1.2478]
[1744908509764,1.24782,1603.1,1603.0,1.24786]
[1744908509969,3.2078,1603.2,1602.8,5.40335541]
[1744908510166,3.2078,1603.2,1602.8,8.52344541]
[1744908510468,3.2078,1603.2,1603.1,1.2478]
[1744908511469,8.29249316,1603.5,1603.2,1.24772]
[1744908511771,12.19527609,1604.0,1603.9,1.24718]
[1744908512074,12.19527609,1604.0,1603.9,6.63418]
[1744908514173,12.19527609,1604.0,1603.8,0.00935541]
[1744908514174,20.40307609,1604.0,1603.8,0.00935541]
[1744908514375,16.65023609,1604.0,1603.8,1.25659541]
[1744908514678,23.52089609,1604.0,1603.3,3.2078]
[1744908514876,1.24739,1603.7,1603.5,1.24747]
[1744908515175,6.32607,1603.8,1603.3,3.2078]
[1744908515479,1.24743,1603.6,1603.2,8.50531]
[1744908515868,4.45521,1603.6,1603.5,1.24749]
[1744908516378,1.24754,1603.5,1603.4,1.24754]
[1744908516566,1.2476,1603.4,1603.3,1.24761]
[1744908516768,1.24765,1603.3,1603.2,0.00935541]
[1744908516967,4.69585,1603.3,1603.2,0.00935541]
[1744908517471,11.56748,1603.3,1602.9,1.24793]
[1744908517667,1.24783,1603.1,1602.7,16.59403659]
[1744908517873,4.45556,1603.2,1603.1,1.2478]
[1744908518177,1.2478,1603.1,1603.0,1.24783]
[1744908518582,5.0,1603.1,1602.9,0.00935541]
[1744908518779,1.2479,1603.0,1602.9,1.25725541]
[1744908518980,1.2479,1603.0,1602.9,0.00935541]
[1744908519177,4.4557,1603.0,1602.9,0.00935541]
[1744908519579,4.45568,1603.0,1602.9,1.25731541]
[1744908519887,4.45568,1603.0,1602.9,0.00935541]
[1744908521073,3.2078,1603.0,1602.9,1.25731541]
[1744908521273,4.45568,1603.0,1602.9,1.25731541]
[1744908521474,4.45568,1603.0,1602.9,0.00935541]
[1744908522079,9.45568,1603.0,1602.9,0.00935541]
[1744908522282,1.24819,1602.7,1602.6,1.24818]
[1744908523278,6.8026,1602.9,1602.5,1.24822]
[1744908523581,1.24819,1602.6,1602.5,1.25758541]
[1744908524183,1.24819,1602.6,1602.5,0.00935541]
[1744908524576,1.24811,1602.8,1602.6,1.24819]
[1744908524875,3.2078,1602.9,1602.7,1.24805]
[1744908525073,6.32771,1602.9,1602.5,0.00935541]
[1744908525280,1.24815,1602.7,1602.6,1.24817]
[1744908525686,1.24819,1602.6,1602.5,0.00935541]
[1744908526586,1.2485,1602.2,1602.1,6.63555]
[1744908527081,1.2485,1602.2,1602.1,1.24854]
[1744908527393,3.2078,1602.2,1601.9,7.89651]
[1744908527677,1.24863,1602.1,1601.9,7.89651]
[1744908527884,4.93072541,1602.2,1602.0,1.24866]
[1744908528071,1.24858,1602.1,1602.0,1.24862]
[1744908528277,4.92138,1602.1,1602.0,1.24862]
[1744908528473,1.24866,1602.0,1601.9,9.12285541]
[1744908528795,8.12926,1602.0,1601.9,0.00935541]
[1744908532679,1.24905,1601.5,1601.4,1.24911]
[1744908532880,1.24905,1601.5,1601.4,1.23991477]
[1744908533081,5.02063,1601.6,1601.5,1.24905]
[1744908533283,1.23986477,1601.5,1601.4,1.24906]
[1744908533478,3.7716,1601.5,1601.4,1.23986477]
[1744908533684,3.7716,1601.5,1601.4,3.70876477]
[1744908533883,1.24878,1601.9,1601.8,1.24881]
[1744908534087,5.01118477,1601.9,1601.8,1.24881]
[1744908534289,3.7716,1601.9,1601.8,1.24881]
[1744908534491,5.02034,1601.9,1601.8,1.24881]
[1744908534678,3.7716,1601.9,1601.8,1.24881]
[1744908535388,5.02034,1601.9,1601.7,4.45663]
[1744908535587,5.0204,1601.9,1601.8,1.24882]
[1744908535794,5.0204,1601.9,1601.7,1.24883]
[1744908536091,5.0204,1601.9,1601.8,1.24882]
[1744908536092,3.7716,1601.9,1601.8,1.24882]
[1744908536289,5.02038,1601.9,1601.7,1.24883]
[1744908536493,5.02038,1601.9,1601.8,1.24882]
[1744908536689,3.7716,1601.9,1601.8,1.24882]
[1744908536991,5.02038,1601.9,1601.7,1.24883]
[1744908537289,5.02038,1601.9,1601.6,12.1374]
[1744908537489,5.02038,1601.9,1601.7,1.24885]
[1744908538685,5.02038,1601.9,1601.6,13.38631]
[1744908538686,1.24886,1601.8,1601.6,13.38631]
[1744908538893,4.45674,1601.7,1601.4,3.12283]
[1744908539190,3.12185,1601.9,1601.5,4.45678]
[1744908539383,1.24892,1601.7,1601.5,1.24898]
[1744908539789,1.24892,1601.7,1601.6,1.24897]
[1744908539990,1.24892,1601.7,1601.5,3.2078]
[1744908540189,1.24891,1601.7,1601.5,4.45678]
[1744908540488,1.24888,1601.8,1601.5,4.45678]
[1744908540685,1.24889,1601.7,1601.5,4.45678]
[1744908540892,1.24877,1601.9,1601.7,1.24889]
[1744908541196,3.2078,1602.0,1601.9,1.24874]
[1744908541497,10.3617,1602.1,1602.0,1.24866]
[1744908541686,10.3617,1602.1,1601.7,5.58794]
[1744908541687,11.61032,1602.1,1601.7,5.58794]
[1744908541883,1.24868,1602.0,1601.7,5.58794]
[1744908542087,1.24868,1602.0,1601.8,1.24875]
[1744908542280,10.3617,1602.1,1601.7,5.58794]
[1744908542495,4.45643,1602.1,1601.7,5.58794]
[1744908542795,6.32943,1602.1,1601.7,3.4493]
[1744908542989,1.24879,1601.9,1601.8,1.24879]
[1744908543291,4.45644,1602.1,1602.0,1.24866]
[1744908543799,0.00935541,1602.2,1602.1,1.24858]
[1744908543990,1.25785541,1602.2,1602.1,1.24858]
[1744908544897,1.24865,1602.1,1602.0,1.24859]
[1744908545198,1.24874,1602.0,1601.9,1.24869]
[1744908545398,1.24865,1602.1,1602.0,1.24859]
[1744908546991,1.24874,1601.9,1601.8,1.24876]
[1744908547495,1.2491,1601.5,1601.4,1.2491]
[1744908547696,1.2491,1601.5,1601.3,0.00935541]
[1744908547697,1.25832523,1601.4,1601.3,0.00935541]
[1744908548295,4.45691,1601.5,1601.4,1.24913]
[1744908548798,3.2078,1601.5,1601.4,1.24913]
[1744908549300,7.1066,1601.8,1601.7,1.24889]
[1744908549490,1.24877,1601.9,1601.8,1.25793523]
[1744908549907,13.48958541,1602.2,1601.6,6.33024]
[1744908550093,1.2487,1602.0,1601.9,1.24867]
[1744908550400,1.24863,1602.1,1602.0,1.24861]
[1744908550601,1.24874,1602.0,1601.9,1.24871]
[1744908550896,1.24874,1601.9,1601.8,1.24877]
[1744908551197,3.21715541,1602.2,1602.1,1.24858]
[1744908551397,1.24863,1602.1,1602.0,1.24859]
[1744908551698,7.45116165,1602.1,1602.0,1.24859]
[1744908551896,1.24869,1602.0,1601.9,1.24867]
[1744908552099,1.24869,1602.0,1601.9,4.45647]
[1744908552898,7.45117165,1602.1,1602.0,1.24866]